[Event "Hector S Nazzari Memorial 2019"]
[Site "Montevideo"]
[Date "2019.10.15"]
[Round "2.14"]
[White "Genta, Alejandro"]
[Black "Palacio, Enzo"]
[Result "0-1"]
[ECO "A01"]
[WhiteElo "2036"]
[BlackElo "1780"]
[Annotator "NA RC"]
[PlyCount "102"]
[EventDate "2019.10.14"]
[EventType "swiss"]
[EventCountry "URU"]
[SourceTitle "playchess.com"]
[Source "ChessBase"]
[SourceQuality "1"]
[TimeControl "5400+30"]

1. b3 {[%emt 0:00:00]} Nf6 {[%emt 0:01:55]} 2. Bb2 {[%emt 0:00:00]} g6 {[%emt 0:00:19]} 3. Nf3 {[%emt 0:04:59]} Bg7 {[%emt 0:00:02]} 4. g3 {[%emt 0:00:03]} d6 {[%emt 0:02:16]} 5. Bg2 {[%emt 0:00:06]} O-O {[%emt 0:00:08]} 6. c4 {[%emt 0:00:45]} Nbd7 {[%emt 0:04:49]} 7. O-O {[%emt 0:00:27]} c6 {[%emt 0:02:19]} 8. Qc2 {[%emt 0:02:03]} Qc7 {[%emt 0:00:55]} 9. d4 {[%emt 0:04:46]} Re8 {[%emt 0:01:33]} 10. Nbd2 {[%emt 0:08:13]} e5 {[%emt 0:04:54]} 11. e4 {[%emt 0:06:06]} a5 {[%emt 0:00:32]} 12. Rad1 {[%emt 0:00:17]} Qb6 {[%emt 0:15:44]} 13. c5 {[%emt 0:16:36]} dxc5 {[%emt 0:03:53]} 14. Nc4 {[%emt 0:00:14]} Qc7 {[%emt 0:00:14]} 15. dxc5 {[%emt 0:00:19]} h6 {[%emt 0:34:04]} 16. Nd6 {[%emt 0:14:01]} Re7 {[%emt 0:00:45]} 17. Bh3 {[%emt 0:01:58]} Nh7 {[%emt 0:06:44]} 18. Rfe1 {[%emt 0:01:25]} Nhf8 {[%emt 0:01:04]} 19. a3 {[%emt 0:05:41]} Qb8 {[%emt 0:04:59]} 20. b4 {[%emt 0:04:59]} axb4 {[%emt 0:00:58]} 21. axb4 {[%emt 0:00:03]} Nb6 {[%emt 0:01:05]} 22. Nxc8 {[%emt 0:10:15]} Nxc8 {[%emt 0:00:02]} 23. Rd8 {[%emt 0:00:07]} Qc7 {[%emt 0:00:27]} 24. Red1 {[%emt 0:00:02]} Kh7 {[%emt 0:00:32]} 25. Bxe5 {[%emt 0:02:34]} Bxe5 {[%emt 0:02:26]} 26. Nxe5 {[%emt 0:00:52]} Qxe5 {[%emt 0:01:30]} 27. Rxf8 {[%emt 0:03:32]} Nb6 {[%emt 0:01:44]} 28. f4 Qg7 {[%emt 0:02:19]} 29. Rdd8 {[%emt 0:05:23]} Rxd8 {[%emt 0:00:30]} 30. Rxd8 {[%emt 0:00:04]} Qa1+ {[%emt 0:00:09]} 31. Rd1 {[%emt 0:05:02]} Qa4 {[%emt 0:00:07]} 32. Qxa4 {[%emt 0:01:05]} Nxa4 {[%emt 0:00:02]} 33. Rd7 {[%emt 0:00:04]} Rxd7 {[%emt 0:00:30]} 34. Bxd7 {[%emt 0:00:02]} Nb2 {[%emt 0:00:13]} 35. Bc8 {[%emt 0:00:40]} Nd3 {[%emt 0:00:23]} 36. Bxb7 {[%emt 0:00:50]} Nxb4 {[%emt 0:00:02]} 37. Kf2 {[%emt 0:00:22]} Nd3+ {[%emt 0:00:17]} 38. Ke3 {[%emt 0:00:02]} Nxc5 {[%emt 0:00:07]} 39. Bxc6 {[%emt 0:00:05]} Kg7 {[%emt 0:00:30]} 40. Kd4 {[%emt 0:00:19]} Ne6+ {[%emt 0:00:08]} 41. Ke5 {[%emt 0:00:05]} h5 {[%emt 0:02:27]} 42. f5 {[%emt 0:04:55]} gxf5 {[%emt 0:00:36]} 43. exf5 {[%emt 0:00:02]} Nf8 {[%emt 0:00:33]} 44. f6+ {[%emt 0:00:27]} Kg6 {[%emt 0:01:04]} 45. Be4+ {[%emt 0:00:10]} Kg5 {[%emt 0:04:02]} 46. Bf5 {[%emt 0:00:42]} h4 {[%emt 0:00:26]} 47. gxh4+ {[%emt 0:02:07]} Kxh4 {[%emt 0:00:01]} 48. Kf4 {[%emt 0:00:38]} Kh5 {[%emt 0:00:18]} 49. h3 {[%emt 0:00:31]} Ng6+ {[%emt 0:01:11]} 50. Bxg6+ {[%emt 0:00:31]} Kxg6 {[%emt 0:00:02]} 51. Ke5 {[%emt 0:00:12]} Kg5 {[%emt 0:00:02]} 0-1

[Event "Hector S Nazzari Memorial 2019"]
[Site "Montevideo"]
[Date "2019.10.16"]
[Round "3.10"]
[White "Saralegui, Mario"]
[Black "Rodriguez Farias, Eduardo"]
[Result "0-1"]
[ECO "E92"]
[WhiteElo "2059"]
[BlackElo "1931"]
[Annotator "NA RC"]
[PlyCount "88"]
[EventDate "2019.10.14"]
[EventType "swiss"]
[EventCountry "URU"]
[SourceTitle "playchess.com"]
[Source "ChessBase"]
[SourceQuality "1"]
[TimeControl "5400+30"]

{[%evp 23,88,-21,15,14,72,45,52,62,32767,84,32767,-47,32767,32767,32767,32767,107,-33,32767,-45,-26,32767,32767,-109,-95,-119,-95,-111,-98,-89,-91,-110,-94,-174,-167,-175,-177,-222,-214,-297,-255,-288,-284,-336,-294,-368,-373,-837,-985,-1003,-451,-454,-461,-598,-594,-555,-629,-807,-634,-790,-855,-998,-803,-4686,-2463,-2010,-4431]} 1. d4 {[%emt 0:00:00]} Nf6 {[%emt 0:03:45]} 2. c4 {[%emt 0:00:07]} g6 {[%emt 0:00:35]} 3. Nc3 {[%emt 0:00:39]} Bg7 {[%emt 0:00:15]} 4. e4 {[%emt 0:00:26]} d6 {[%emt 0:00:06]} 5. Nf3 {[%emt 0:01:25]} O-O {[%emt 0:00:13]} 6. Be2 {[%emt 0:00:51]} e5 {[%emt 0:00:21]} 7. dxe5 {[%emt 0:02:09]} dxe5 {[%emt 0:00:14]} 8. Qxd8 {[%emt 0:00:07]} Rxd8 {[%emt 0:00:09]} 9. Bg5 {[%emt 0:00:03]} c6 {[%emt 0:00:30]} 10. Nxe5 {[%emt 0:03:30]} Re8 {[%emt 0:00:15]} 11. f4 {[%emt 0:00:15]} Na6 {[%emt 0:04:27]} 12. O-O-O {[%emt 0:04:30]} Nc5 {[%emt 0:01:14]} 13. Bf3 {[%emt 0:05:29]} h6 {[%emt 0:00:14]} 14. Bh4 {[%emt 0:01:58] E92: King's Indian: Classical: 6 Be2 e5: 7 dxe5, 7 Be3 and Petrosian System without 7...Nbd7} g5 {[%emt 0:04:12]} 15. Bf2 {[%emt 0:00:13]} ({Worse is} 15. fxg5 hxg5 16. Bxg5 (16. Bg3 $2 g4 $19) 16... Rxe5 $19 {[%mdl 64] Double Attack}) 15... Ne6 {[%emt 0:11:16]} 16. f5 {[%emt 0:18:35]} Nf4 {[%emt 0:09:32]} 17. Nd3 {[%emt 0:00:15]} (17. g3 $16 Nh3 18. Nd3) 17... Nxd3+ {[%emt 0:10:35]} 18. Rxd3 {[%emt 0:00:07]} g4 {[%emt 0:00:07] [#]} 19. Be2 $146 {[%emt 0:00:06]} ({Predecessor:} 19. Bd1 Nxe4 20. Nxe4 Rxe4 21. Rd8+ {1-0 (55) Gutman,G (2501)-Yuffa,D (2302) Pardubice 2011}) 19... b6 {[%emt 0:02:52]} (19... Nxe4 $11 {keeps the balance.} 20. Nxe4 Bxf5 21. Bxg4 Bxg4) 20. h3 {[%emt 0:02:59]} (20. Rhd1 $16) 20... Nxe4 {[%emt 0:08:18]} 21. Nxe4 {[%emt 0:03:23]} Bxf5 {[%emt 0:00:06]} 22. Rg3 {[%emt 0:28:22]} Bxe4 {[%emt 0:02:56]} 23. Bxg4 {[%emt 0:04:40]} Be5 {[%emt 0:02:37]} 24. Rb3 {[%emt 0:05:01]} Bf4+ {[%emt 0:01:21]} 25. Be3 {[%emt 0:01:50]} Bxg2 {[%emt 0:01:23]} 26. Bxf4 {[%emt 0:00:29]} Bxh1 {[%emt 0:00:15]} 27. Rg3 {[%emt 0:00:21]} Kh8 {[%emt 0:03:16]} 28. Bxh6 {[%emt 0:03:28]} (28. Bd2 $17 f6 29. Bc3) 28... Be4 {[%emt 0:01:10]} 29. Bg5 {[%emt 0:00:42]} Kh7 {[%emt 0:03:00]} 30. Bf6 {[%emt 0:01:01]} (30. h4 {might work better.}) 30... Rg8 {[%emt 0:00:33]} 31. Re3 {[%emt 0:01:04]} Kg6 {[%emt 0:06:56]} 32. Bc3 {[%emt 0:03:14]} f5 {[%emt 0:00:12]} 33. Be2 {[%emt 0:01:06]} c5 {[%emt 0:03:23]} 34. b3 {[%emt 0:00:35]} Rae8 {[%emt 0:01:35]} 35. h4 $2 {[%emt 0:00:44]} (35. Rg3+ Kf7 36. Be1 Rxg3 37. Bxg3) 35... f4 {[%emt 0:01:28]} 36. Rh3 {[%emt 0:01:31]} Kh6 {[%emt 0:01:09]} 37. Bd2 {[%emt 0:00:20]} Ref8 {[%emt 0:00:19]} 38. Bf3 {[%emt 0:01:04]} Bxf3 {[%emt 0:02:25]} 39. Rxf3 {[%emt 0:00:02]} Rg4 {[%emt 0:00:02]} 40. Rd3 {[%emt 0:02:10]} Rf7 {[%emt 0:00:14]} 41. Rd6+ {[%emt 0:00:31]} Kh5 {[%emt 0:00:46]} 42. Be1 {[%emt 0:01:21]} Rg1 {[%emt 0:04:13]} 43. Kd2 {[%emt 0:00:11]} Re7 {[%emt 0:01:24]} 44. Rd5+ $19 {[%emt 0:00:27]} Kh6 {[%emt 0:00:15]} 0-1

[Event "Hector S Nazzari Memorial 2019"]
[Site "Montevideo"]
[Date "2019.10.16"]
[Round "3.12"]
[White "Tregarthen, Emiliano"]
[Black "Belistri, Ubaldo"]
[Result "1-0"]
[ECO "B15"]
[WhiteElo "2039"]
[BlackElo "1853"]
[Annotator "NA RC"]
[PlyCount "104"]
[EventDate "2019.10.14"]
[EventType "swiss"]
[EventCountry "URU"]
[SourceTitle "playchess.com"]
[Source "ChessBase"]
[SourceQuality "1"]
[TimeControl "5400+30"]

{[%evp 9,104,37,27,40,32,32767,32767,32767,32767,32767,32767,32767,32767,32767,10,-31,32767,-3,-23,-10,-18,-38,32767,32767,32767,32767,32767,32767,5,-12,39,21,69,43,82,32767,174,154,161,32767,157,176,32767,174,32767,32767,32767,32767,32767,247,189,32767,32767,194,356,515,426,479,1174,443,581,692,605,-1004,-1312,-944,-857,-705,-393,-388,-479,-393,-402,-404,0,0,0,-312,-308,-339,-291,-317,0,0,0,-360,-362,-522,-657,-570,-745,-12833,-1008,-29991,-29989,-29994,-1210]} 1. e4 {[%emt 0:00:00]} c6 {[%emt 0:00:00]} 2. d4 {[%emt 0:00:00]} d5 {[%emt 0:00:06]} 3. Nc3 {[%emt 0:00:00]} dxe4 {[%emt 0:01:50]} 4. Nxe4 {[%emt 0:00:06]} Nf6 {[%emt 0:00:14]} 5. Nxf6+ {[%emt 0:01:05]} exf6 {[%emt 0:00:09]} 6. Nf3 {[%emt 0:00:32]} Bd6 {[%emt 0:00:18]} 7. Bd3 {[%emt 0:00:40]} O-O {[%emt 0:00:23]} 8. O-O {[%emt 0:00:18]} Bg4 {[%emt 0:02:31]} 9. h3 {[%emt 0:04:41]} Bh5 {[%emt 0:00:20] B15: Caro-Kann: 3 Nc3: 3...g6 and 3...dxe4 4 Nxe4 Nf6 5 Nxf6+ exf6} 10. Re1 {[%emt 0:02:23]} (10. Be4 Re8 11. Qd3 Bg6 12. Bxg6 hxg6 13. Bd2 Nd7 {½-½ (13) Ghaem Maghami,E (2574)-Berkes,F (2648) Rasht 2017}) 10... Nd7 {[%emt 0:01:04]} 11. c4 {[%emt 0:03:47]} c5 {[%emt 0:08:11]} 12. d5 $146 {[%emt 0:06:46]} ({Predecessor:} 12. Be4 Qc7 13. Qd3 Bxf3 14. Bxf3 cxd4 15. Qxd4 Be5 16. Qe4 Nc5 {½-½ (30) Karasova,E (2326)-Oger,C (2374) ICCF email 2013}) 12... Ne5 {[%emt 0:01:15]} 13. g4 {[%emt 0:03:32]} Nxd3 {[%emt 0:00:16]} 14. Qxd3 {[%emt 0:00:09]} Bg6 {[%emt 0:00:02]} 15. Qc3 {[%emt 0:01:19]} h6 {[%emt 0:01:15]} 16. Nh4 {[%emt 0:02:49]} Bh7 {[%emt 0:00:25]} 17. Qf3 {[%emt 0:03:19]} Be5 {[%emt 0:05:37]} 18. Nf5 {[%emt 0:01:33]} Bxf5 {[%emt 0:03:47]} 19. gxf5 {[%emt 0:07:38]} Re8 {[%emt 0:01:52]} (19... b5 $5) 20. Re4 {[%emt 0:05:23]} Kh7 {[%emt 0:07:30]} 21. Be3 {[%emt 0:06:49]} b6 {[%emt 0:05:45]} 22. Rh4 {[%emt 0:04:32]} Qe7 $2 {[%emt 0:04:30] [#]} (22... Bxb2 $11 {and Black stays safe.} 23. Rb1 Bd4) 23. Kh1 $1 {[%emt 0:05:43]} Rg8 {[%emt 0:04:26]} 24. Qh5 {[%emt 0:01:17]} Qf8 {[%emt 0:00:37]} 25. Rg1 {[%emt 0:00:48]} Bd4 {[%emt 0:10:57]} 26. Bxd4 {[%emt 0:01:08]} cxd4 {[%emt 0:00:03]} 27. Rxd4 {[%emt 0:00:11]} Qe7 {[%emt 0:00:36]} 28. Qg4 {[%emt 0:01:21]} Rae8 {[%emt 0:01:03]} 29. d6 {[%emt 0:01:24]} Qd7 {[%emt 0:00:32]} 30. b4 {[%emt 0:01:05]} Re5 {[%emt 0:02:46]} 31. Rc1 {[%emt 0:03:27]} Rxf5 {[%emt 0:04:29]} 32. c5 {[%emt 0:03:27]} bxc5 {[%emt 0:04:53]} 33. bxc5 {[%emt 0:07:15]} Rc8 {[%emt 0:03:32] [#]} (33... Qc6+ $142 34. Qe4 Qxe4+ 35. Rxe4 Rd5) 34. Qe4 {[%emt 0:08:33]} (34. Rd5 $142 $3 {[%mdl 512]}) 34... g6 {[%emt 0:02:33]} 35. c6 {[%emt 0:00:45]} Rxf2 {[%emt 0:02:21]} 36. Qg4 $4 {[%emt 0:02:06] [#]} (36. cxd7 $2 {leads to mate.} Rxc1+ 37. Rd1 Rxd1+ 38. Qe1 Rxe1#) (36. Kg1 $18 Rxa2 37. Rc2 (37. cxd7 $2 {gets mated.} Rxc1+ 38. Rd1 Rxd1+ 39. Qe1 Rxe1#) 37... Qxh3 38. Rxa2 Rxc6 39. Qxc6 Qe3+ 40. Kf1 Qxd4 41. d7) 36... Rxc6 $1 {[%emt 0:00:44]} 37. Kg1 {[%emt 0:08:16]} f5 {[%emt 0:01:26]} 38. Qd1 {[%emt 0:00:59]} Rxc1 {[%emt 0:04:06]} 39. Qxc1 {[%emt 0:00:25]} Rxa2 {[%emt 0:00:38]} 40. Qc4 {[%emt 0:00:55]} Ra1+ {[%emt 0:00:21]} 41. Kf2 $1 $11 {[%emt 0:00:12]} Qb7 $2 {[%emt 0:04:30]} (41... g5 $19 42. Qe2 Kg6) 42. Qd5 {[%emt 0:02:05]} Qd7 {[%emt 0:03:52]} 43. Rd2 $2 {[%emt 0:00:07]} Ra6 {[%emt 0:02:14]} 44. Qd4 {[%emt 0:00:42]} Rc6 {[%emt 0:01:02]} 45. Qf6 {[%emt 0:00:48]} Kg8 $2 {[%emt 0:02:11]} (45... Rb6 $19 46. Qe7 Rb7) 46. Qe7 {[%emt 0:00:29] [#]} Rc7 $1 {[%emt 0:01:58]} 47. Qf6 $2 {[%emt 0:01:42]} (47. dxc7 $11 Qxd2+ 48. Kg1 Qd4+ 49. Kh1 Qd1+ 50. Kg2 Qd2+ 51. Kf3 Qc3+ 52. Kg2 Qc6+ 53. Kg3 f4+ 54. Kxf4) 47... Rc8 {[%emt 0:00:13]} 48. Re2 {[%emt 0:00:28]} (48. Qe7 $142 Qa4 49. Qe3) 48... Qa4 {[%emt 0:01:21]} 49. Qe5 {[%emt 0:00:26]} Qh4+ {[%emt 0:01:14]} 50. Kg2 {[%emt 0:00:12]} f4 {[%emt 0:01:40]} 51. Kf3 {[%emt 0:01:01]} Qxh3+ {[%emt 0:00:15]} 52. Kxf4 {[%emt 0:00:20]} Qh4+ $19 (52... Rc4+ $142 53. Qd4 Rxd4+ 54. Re4 Rd3 55. Re8+ Kh7 56. Rh8+ Kxh8 57. Ke5 Qf5#) 1-0

[Event "Hector S Nazzari Memorial 2019"]
[Site "Montevideo"]
[Date "2019.10.16"]
[Round "3.14"]
[White "Soto, Nicolas"]
[Black "Genta, Alejandro"]
[Result "0-1"]
[ECO "B40"]
[WhiteElo "2013"]
[BlackElo "2036"]
[Annotator "NA RC"]
[PlyCount "78"]
[EventDate "2019.10.14"]
[EventType "swiss"]
[EventCountry "URU"]
[SourceTitle "playchess.com"]
[Source "ChessBase"]
[SourceQuality "1"]
[TimeControl "5400+30"]

{[%evp 12,78,30,39,29,46,53,61,80,32767,32767,32767,32767,32767,32767,0,33,48,54,29,37,23,35,47,41,22,12,0,13,12,32767,32767,32767,-17,16,-19,0,-38,-17,-71,-59,-121,-52,-146,-185,-188,-193,-189,-146,-145,-151,-208,-189,-172,-175,-168,-152,-132,-182,-941,-993,-922,-935,-1082,-1112,-1081,-1227,-1072,-1155]} 1. e4 {[%emt 0:04:15]} c5 {[%emt 0:00:00]} 2. Nf3 {[%emt 0:00:15]} e6 {[%emt 0:00:00]} 3. b3 {[%emt 0:00:18]} Nf6 {[%emt 0:03:11]} 4. e5 {[%emt 0:00:59]} Nd5 {[%emt 0:00:06]} 5. g3 {[%emt 0:00:53]} Be7 {[%emt 0:07:42]} 6. Bb2 {[%emt 0:03:57]} Nc6 {[%emt 0:02:27]} 7. Bg2 {[%emt 0:06:03]} f6 {[%emt 0:01:54]} 8. O-O {[%emt 0:05:55]} O-O {[%emt 0:00:18]} 9. c4 {[%emt 0:01:01] B40: Sicilian: 2...e6, Unusual lines} Ndb4 {[%emt 0:00:49]} (9... Nc7 10. d4 cxd4 11. Nxd4 Nxe5 12. Nc3 Nc6 13. Re1 a6 14. Qd2 Bc5 15. Na4 Ba7 16. Rad1 Qe8 {1-0 (32) Onischuk,V (2594)-Milov,V (2622) Dubai 2014}) 10. d4 {[%emt 0:05:13]} cxd4 {[%emt 0:00:30]} 11. a3 {[%emt 0:00:41]} Na6 {[%emt 0:00:23]} 12. Nxd4 $146 {[%emt 0:08:40]} ({Predecessor:} 12. exf6 Bxf6 13. b4 Qb6 14. Nbd2 Nc5 15. Rb1 Nd3 16. Ba1 Nce5 17. Nxe5 Nxe5 {½-½ (42) Kobs,S (1986)-Klauke,S (2125) Vellmar 2013}) 12... Nxe5 {[%emt 0:01:17]} 13. Nb5 {[%emt 0:04:32]} Nf7 {[%emt 0:08:03]} 14. Bd4 {[%emt 0:02:38]} Bc5 {[%emt 0:02:57]} 15. b4 {[%emt 0:06:42]} Bxd4 {[%emt 0:00:06]} 16. Qxd4 {[%emt 0:00:11]} d5 {[%emt 0:19:34]} 17. cxd5 {[%emt 0:08:57]} e5 {[%emt 0:00:51]} 18. Qe3 {[%emt 0:03:05]} Nc7 {[%emt 0:07:23]} 19. N1c3 {[%emt 0:02:39]} Nxb5 {[%emt 0:00:10]} 20. Nxb5 {[%emt 0:00:27]} Bd7 {[%emt 0:07:08]} 21. Nc3 {[%emt 0:08:40]} Nd6 {[%emt 0:00:13]} 22. Ne4 {[%emt 0:06:39]} Nf5 {[%emt 0:00:15]} 23. Qd3 {[%emt 0:01:09]} Nd4 {[%emt 0:01:08]} 24. a4 {[%emt 0:01:00]} Bf5 {[%emt 0:05:13]} 25. Rfd1 {[%emt 0:00:11]} (25. f4 $11 {remains equal.}) 25... Rc8 {[%emt 0:00:22]} 26. Ra2 {[%emt 0:06:11]} ({White should try} 26. Rdc1 $15) 26... Rf7 {[%emt 0:07:20]} (26... Kh8 $17 27. d6 Bxe4 28. Qxe4 Qxd6) 27. Qd2 {[%emt 0:02:13] [#]} (27. f4 $15) 27... Bg4 $1 {[%emt 0:09:47]} 28. Re1 {[%emt 0:05:37]} Bf3 {[%emt 0:01:00]} 29. d6 {[%emt 0:01:19]} Bxe4 {[%emt 0:03:02]} 30. Rxe4 {[%emt 0:00:55]} Qxd6 {[%emt 0:00:03]} 31. f4 {[%emt 0:00:26]} Rfc7 {[%emt 0:02:13]} 32. Re1 {[%emt 0:03:02]} Rd8 {[%emt 0:05:20]} 33. Qf2 {[%emt 0:00:27]} Qxb4 {[%emt 0:01:53]} 34. fxe5 {[%emt 0:01:00]} fxe5 {[%emt 0:00:29]} 35. Rxe5 $2 {[%emt 0:00:27]} (35. a5) 35... Rc1+ {[%emt 0:00:28]} 36. Bf1 {[%emt 0:00:41]} Rf8 {[%emt 0:00:03]} 37. Qxf8+ {[%emt 0:00:20]} Qxf8 {[%emt 0:01:00]} 38. Rf2 {[%emt 0:00:01]} Nf3+ {[%emt 0:00:39]} 39. Kg2 $19 {[%emt 0:00:22]} Nxe5 {[%emt 0:00:03]} 0-1

[Event "Hector S Nazzari Memorial 2019"]
[Site "Montevideo"]
[Date "2019.10.17"]
[Round "4.12"]
[White "Genta, Alejandro"]
[Black "Belistri, Ubaldo"]
[Result "1/2-1/2"]
[ECO "A06"]
[WhiteElo "2036"]
[BlackElo "1853"]
[Annotator "NA RC"]
[PlyCount "52"]
[EventDate "2019.10.14"]
[EventType "swiss"]
[EventCountry "URU"]
[SourceTitle "playchess.com"]
[Source "ChessBase"]
[SourceQuality "1"]
[TimeControl "5400+30"]

{[%evp 8,49,15,32767,32767,32767,15,10,20,13,19,22,51,37,50,52,32767,32767,32767,32767,32767,32767,32767,32767,74,70,125,32767,32767,32767,26,32767,32767,32767,0,32767,32767,0,0,-18,0,0,0,0]} 1. Nf3 {[%emt 0:16:26]} d5 {[%emt 0:00:27]} 2. b3 {[%emt 0:01:53]} Nf6 {[%emt 0:01:06]} 3. Bb2 {[%emt 0:00:05]} e6 {[%emt 0:00:37]} 4. e3 {[%emt 0:00:35]} c5 {[%emt 0:01:05]} 5. d4 {[%emt 0:00:55]} Nc6 {[%emt 0:00:46]} 6. Nbd2 {[%emt 0:03:05]} cxd4 {[%emt 0:09:41]} 7. exd4 {[%emt 0:00:29]} Be7 {[%emt 0:04:04] D05: Colle System with ...e6} (7... g6 8. Bb5 Bg7 9. O-O O-O 10. Re1 Qb6 11. a4 Bd7 12. c4 a6 13. Bxc6 Bxc6 14. c5 Qc7 15. b4 {½-½ (63) Kramnik,V (2811)-Nakamura,H (2793) Zuerich 2017}) 8. Bd3 {[%emt 0:00:08]} O-O {[%emt 0:01:15]} 9. O-O {[%emt 0:00:07]} Bd7 {[%emt 0:01:03]} 10. a3 {[%emt 0:01:06]} a6 {[%emt 0:07:42]} 11. Ne5 {[%emt 0:01:49]} Nxe5 {[%emt 0:08:36]} 12. dxe5 {[%emt 0:00:10]} Ne8 {[%emt 0:00:19]} 13. Qe2 $146 {[%emt 0:05:45]} ({Predecessor:} 13. f4 Bb5 14. c4 Bc6 15. Kh1 dxc4 16. Nxc4 {1-0 (40) Berdiugina,E-Stepunina,E Lvov 1999}) 13... f5 {[%emt 0:04:56]} 14. f4 {[%emt 0:12:47]} g6 {[%emt 0:01:34]} 15. Kh1 {[%emt 0:05:03]} Rc8 {[%emt 0:06:18]} 16. Bd4 {[%emt 0:08:03]} Bb5 {[%emt 0:09:59]} (16... h6 $14) 17. Bxb5 {[%emt 0:08:36]} axb5 {[%emt 0:00:02]} 18. c3 {[%emt 0:00:06]} Qd7 {[%emt 0:01:06]} 19. a4 {[%emt 0:02:59]} b4 {[%emt 0:00:43]} 20. cxb4 {[%emt 0:01:41]} Bxb4 {[%emt 0:00:04]} 21. Rfc1 {[%emt 0:00:08]} Nc7 {[%emt 0:02:23]} 22. Nf3 {[%emt 0:01:40]} Na6 {[%emt 0:02:53]} 23. Qe3 {[%emt 0:02:06]} Rxc1+ {[%emt 0:01:03]} 24. Rxc1 {[%emt 0:00:06]} Rc8 {[%emt 0:00:10]} 25. h4 $11 {[%emt 0:09:55]} h5 {[%emt 0:04:26]} 26. Ng5 Be7 1/2-1/2

[Event "Hector S Nazzari Memorial 2019"]
[Site "Montevideo"]
[Date "2019.10.17"]
[Round "4.13"]
[White "Gomez Troccoli, Martin"]
[Black "Saralegui, Mario"]
[Result "1-0"]
[ECO "C58"]
[WhiteElo "1961"]
[BlackElo "2059"]
[Annotator "NA RC"]
[PlyCount "80"]
[EventDate "2019.10.14"]
[EventType "swiss"]
[EventCountry "URU"]
[SourceTitle "playchess.com"]
[Source "ChessBase"]
[SourceQuality "1"]
[TimeControl "5400+30"]

1. e4 {[%emt 0:00:00]} e5 {[%emt 0:00:00]} 2. Nf3 {[%emt 0:00:00]} Nc6 {[%emt 0:00:02]} 3. Bc4 {[%emt 0:00:00]} Nf6 {[%emt 0:00:36]} 4. Ng5 {[%emt 0:00:00]} d5 5. exd5 {[%emt 0:00:00]} Na5 {[%emt 0:00:18]} 6. Bb5+ {[%emt 0:00:00]} c6 {[%emt 0:00:08]} 7. dxc6 bxc6 {[%emt 0:00:21]} 8. Qf3 {[%emt 0:00:00]} Qc7 {[%emt 0:01:02]} 9. Bd3 {[%emt 0:00:13]} Be7 {[%emt 0:00:43]} 10. Nc3 {[%emt 0:00:55]} h6 {[%emt 0:01:51]} 11. Nge4 {[%emt 0:00:49]} Nd5 {[%emt 0:00:23]} 12. Ng3 {[%emt 0:00:57]} Nf4 {[%emt 0:02:14]} 13. Be4 {[%emt 0:03:53]} O-O {[%emt 0:04:28]} 14. Nf5 {[%emt 0:04:49]} Bf6 {[%emt 0:03:43]} 15. g3 {[%emt 0:02:16]} Ne6 $2 {[%emt 0:01:58] [#]} (15... Bxf5 $16 16. Bxf5 Nd5) 16. Nxh6+ $1 {[%emt 0:02:49] Clearance} Kh8 {[%emt 0:04:04]} (16... gxh6 $142 17. Qxf6 Qd8 18. Qxh6 f5 19. Qg6+ Ng7) 17. Qh5 {[%emt 0:01:27]} Ng5 {[%emt 0:12:32]} 18. Nxf7+ {[%emt 0:00:17] Double Attack, Discovered Attack (Double check)} Kg8 {[%emt 0:00:06]} 19. Nxg5 {[%emt 0:00:16]} Bxg5 {[%emt 0:00:21]} 20. Qh7+ {[%emt 0:00:45]} Kf7 {[%emt 0:00:56]} 21. Qg6+ {[%emt 0:00:21]} Kg8 {[%emt 0:00:17]} 22. Qxg5 {[%emt 0:00:50]} Qf7 {[%emt 0:00:15]} 23. O-O {[%emt 0:01:30]} Bh3 {[%emt 0:02:12]} 24. Bg2 {[%emt 0:00:38]} Bxg2 {[%emt 0:00:48]} 25. Kxg2 {[%emt 0:00:15]} Qf3+ {[%emt 0:00:37]} 26. Kg1 {[%emt 0:00:27]} Rf5 {[%emt 0:05:38]} 27. Qe3 {[%emt 0:00:47]} Qh5 {[%emt 0:00:09]} 28. Ne4 {[%emt 0:02:48]} Raf8 {[%emt 0:04:45]} 29. d3 {[%emt 0:01:34]} Nb7 {[%emt 0:02:39]} 30. Bd2 {[%emt 0:01:07]} Nd8 {[%emt 0:00:48]} 31. Bb4 {[%emt 0:01:47]} R8f7 {[%emt 0:00:13]} 32. Nd6 {[%emt 0:03:10]} Rf3 {[%emt 0:02:25]} 33. Qe4 {[%emt 0:00:31]} R7f6 {[%emt 0:13:06]} 34. Rae1 {[%emt 0:02:27]} R3f4 {[%emt 0:16:37]} 35. Qxe5 {[%emt 0:08:42]} Qh3 {[%emt 0:02:05]} 36. Ne4 {[%emt 0:03:33]} R6f5 {[%emt 0:14:16]} 37. Qe8+ {[%emt 0:05:40]} Kh7 {[%emt 0:00:18]} 38. Qxd8 {[%emt 0:00:36]} Rg4 {[%emt 0:03:57]} 39. f4 {[%emt 0:01:56]} Rh5 {[%emt 0:01:48]} 40. Rf2 {[%emt 0:01:50]} Rg6 1-0